[Event "Titled Tuesday Blitz September 13 Late 2022"]
[White "Salman, Pavel"]
[Black "Hoffmann, Asa"]
[WhiteFideId "24153753"]
[BlackFideId "2001470"]
[WhiteElo "2039"]
[BlackElo "2117"]
[Result "1-0"]
[Round "11"]
[TimeControl "180+1"]
[Date "2022.09.13"]
[WhiteClock "0:00:20"]
[BlackClock "0:00:45"]

1. Nf3 {[%clk 0:02:59]}  d6 {[%clk 0:02:59]} 2. g3 {[%clk 0:02:59]}  c6 {[%clk 0:02:59]} 3. Bg2 {[%clk 0:02:59]}  e5 {[%clk 0:02:58]} 4. O-O {[%clk 0:03:00]}  Nf6 {[%clk 0:02:58]} 5. d3 {[%clk 0:03:00]}  Be7 {[%clk 0:02:58]} 6. Nbd2 {[%clk 0:03:01]}  Be6 {[%clk 0:02:58]} 7. e4 {[%clk 0:03:01]}  h6 {[%clk 0:02:57]} 8. c3 {[%clk 0:03:01]}  Qd7 {[%clk 0:02:57]} 9. Re1 {[%clk 0:03:01]}  Na6 {[%clk 0:02:56]} 10. Qc2 {[%clk 0:02:52]}  O-O {[%clk 0:02:51]} 11. a3 {[%clk 0:02:46]}  Nh7 {[%clk 0:02:48]} 12. d4 {[%clk 0:02:43]}  Nc7 {[%clk 0:02:38]} 13. dxe5 {[%clk 0:02:41]}  dxe5 {[%clk 0:02:32]} 14. Nxe5 {[%clk 0:02:40]}  Qc8 {[%clk 0:02:30]} 15. Ndf3 {[%clk 0:02:34]}  a5 {[%clk 0:02:22]} 16. Bf4 {[%clk 0:02:27]}  a4 {[%clk 0:02:16]} 17. Nd4 {[%clk 0:02:15]}  Bf6 {[%clk 0:02:11]} 18. Nef3 {[%clk 0:01:49]}  Bc4 {[%clk 0:02:09]} 19. e5 {[%clk 0:01:47]}  Be7 {[%clk 0:02:08]} 20. Nf5 {[%clk 0:01:39]}  Re8 {[%clk 0:02:01]} 21. Bh3 {[%clk 0:01:26]}  Be6 {[%clk 0:01:47]} 22. N3d4 {[%clk 0:01:23]}  Nd5 {[%clk 0:01:44]} 23. Bxh6 {[%clk 0:01:12]}  gxh6 {[%clk 0:01:36]} 24. Nxh6+ {[%clk 0:01:13]}  Kh8 {[%clk 0:01:34]} 25. Nxf7+ {[%clk 0:01:10]}  Bxf7 {[%clk 0:01:27]} 26. Bxc8 {[%clk 0:01:10]}  Raxc8 {[%clk 0:01:26]} 27. e6 {[%clk 0:01:05]}  Bg8 {[%clk 0:01:25]} 28. Re5 {[%clk 0:00:57]}  Bf6 {[%clk 0:01:23]} 29. Rh5 {[%clk 0:00:55]}  Rc7 {[%clk 0:01:23]} 30. Re1 {[%clk 0:00:53]}  Rg7 {[%clk 0:01:16]} 31. Kh1 {[%clk 0:00:48]}  Ne7 {[%clk 0:01:10]} 32. Re4 {[%clk 0:00:43]}  Ng6 {[%clk 0:01:09]} 33. Nf5 {[%clk 0:00:40]}  Rxe6 {[%clk 0:01:05]} 34. Nxg7 {[%clk 0:00:38]}  Kxg7 {[%clk 0:01:04]} 35. Rxe6 {[%clk 0:00:37]}  Bxe6 {[%clk 0:01:04]} 36. Qxa4 {[%clk 0:00:37]}  Bd5+ {[%clk 0:01:00]} 37. Rxd5 {[%clk 0:00:36]}  cxd5 {[%clk 0:01:00]} 38. Qd7+ {[%clk 0:00:37]}  Ne7 {[%clk 0:00:57]} 39. Qxb7 {[%clk 0:00:37]}  Kf7 {[%clk 0:00:56]} 40. a4 {[%clk 0:00:36]}  Ng5 {[%clk 0:00:56]} 41. a5 {[%clk 0:00:35]}  Ne4 {[%clk 0:00:56]} 42. a6 {[%clk 0:00:34]}  Nxf2+ {[%clk 0:00:53]} 43. Kg2 {[%clk 0:00:34]}  Ng4 {[%clk 0:00:52]} 44. a7 {[%clk 0:00:32]}  Ne3+ {[%clk 0:00:52]} 45. Kh1 {[%clk 0:00:28]}  d4 {[%clk 0:00:50]} 46. cxd4 {[%clk 0:00:25]}  Bxd4 {[%clk 0:00:50]} 47. a8=Q {[%clk 0:00:25]}  Ng4 {[%clk 0:00:49]} 48. Qf3+ {[%clk 0:00:23]}  Nf6 {[%clk 0:00:48]} 49. b4 {[%clk 0:00:21]}  Ng6 {[%clk 0:00:45]} 50. Qad5+ {[%clk 0:00:20]} 1-0


[Site "https://www.chess.com"]

[Event "Titled Tuesday Blitz September 13 Late 2022"]
[White "Sarana, Alexey"]
[Black "Mirzoev, Azer"]
[WhiteFideId "24133795"]
[BlackFideId "13400304"]
[WhiteElo "2689"]
[BlackElo "2525"]
[Result "0-1"]
[Round "11"]
[TimeControl "180+1"]
[Date "2022.09.13"]
[WhiteClock "0:00:11"]
[BlackClock "0:00:35"]

1. c4 {[%clk 0:02:58]}  e6 {[%clk 0:02:59]} 2. Nc3 {[%clk 0:02:58]}  d5 {[%clk 0:02:59]} 3. d4 {[%clk 0:02:59]}  c6 {[%clk 0:02:59]} 4. cxd5 {[%clk 0:02:58]}  exd5 {[%clk 0:02:58]} 5. Bf4 {[%clk 0:02:58]}  Bf5 {[%clk 0:02:58]} 6. e3 {[%clk 0:02:56]}  Nd7 {[%clk 0:02:55]} 7. Nge2 {[%clk 0:02:51]}  Ngf6 {[%clk 0:02:51]} 8. Ng3 {[%clk 0:02:51]}  Bg6 {[%clk 0:02:51]} 9. h4 {[%clk 0:02:51]}  h5 {[%clk 0:02:45]} 10. Bd3 {[%clk 0:02:51]}  Bxd3 {[%clk 0:02:45]} 11. Qxd3 {[%clk 0:02:52]}  g6 {[%clk 0:02:43]} 12. f3 {[%clk 0:02:51]}  Be7 {[%clk 0:02:41]} 13. Bg5 {[%clk 0:02:51]}  O-O {[%clk 0:02:32]} 14. O-O-O {[%clk 0:02:49]}  b5 {[%clk 0:02:27]} 15. e4 {[%clk 0:02:47]}  b4 {[%clk 0:02:24]} 16. Nce2 {[%clk 0:02:45]}  dxe4 {[%clk 0:02:24]} 17. fxe4 {[%clk 0:02:46]}  Ng4 {[%clk 0:02:23]} 18. Bxe7 {[%clk 0:02:29]}  Qxe7 {[%clk 0:02:24]} 19. Qf3 {[%clk 0:02:29]}  a5 {[%clk 0:02:19]} 20. Nf4 {[%clk 0:02:28]}  a4 {[%clk 0:02:05]} 21. Kb1 {[%clk 0:02:26]}  a3 {[%clk 0:02:02]} 22. b3 {[%clk 0:02:26]}  Rad8 {[%clk 0:01:42]} 23. Rd3 {[%clk 0:01:55]}  Rfe8 {[%clk 0:01:35]} 24. Re1 {[%clk 0:01:36]}  Qxh4 {[%clk 0:01:28]} 25. e5 {[%clk 0:01:29]}  Nf8 {[%clk 0:01:24]} 26. Rh1 {[%clk 0:01:27]}  Qg5 {[%clk 0:01:13]} 27. Ne4 {[%clk 0:01:20]}  Qf5 {[%clk 0:01:13]} 28. Ng3 {[%clk 0:01:14]}  Qg5 {[%clk 0:01:09]} 29. Kc2 {[%clk 0:00:33]}  c5 {[%clk 0:01:07]} 30. Nfxh5 {[%clk 0:00:33]}  gxh5 {[%clk 0:00:59]} 31. Rxh5 {[%clk 0:00:34]}  Qg6 {[%clk 0:00:53]} 32. Rh4 {[%clk 0:00:29]}  Rxd4 {[%clk 0:00:51]} 33. Nf5 {[%clk 0:00:23]}  Nxe5 {[%clk 0:00:38]} 34. Qh3 {[%clk 0:00:15]}  Rxh4 {[%clk 0:00:36]} 35. Qxh4 {[%clk 0:00:11]}  Qxf5 {[%clk 0:00:35]} 0-1


[Site "https://www.chess.com"]

[Event "Titled Tuesday Blitz September 13 Late 2022"]
[White "Souleidis, Georgios"]
[Black "Papasimakopoulos, Alexandros"]
[WhiteFideId "4206827"]
[BlackFideId "4244125"]
[WhiteElo "2401"]
[BlackElo "2357"]
[Result "0-1"]
[Round "11"]
[TimeControl "180+1"]
[Date "2022.09.13"]
[WhiteClock "0:00:04"]
[BlackClock "0:01:23"]

1. e4 {[%clk 0:03:00]}  e6 {[%clk 0:02:55]} 2. d4 {[%clk 0:02:59]}  d5 {[%clk 0:02:55]} 3. exd5 {[%clk 0:03:00]}  exd5 {[%clk 0:02:56]} 4. Nf3 {[%clk 0:03:01]}  Bg4 {[%clk 0:02:55]} 5. h3 {[%clk 0:02:59]}  Bh5 {[%clk 0:02:56]} 6. Qe2+ {[%clk 0:02:55]}  Qe7 {[%clk 0:02:56]} 7. Be3 {[%clk 0:02:55]}  Nc6 {[%clk 0:02:56]} 8. Nc3 {[%clk 0:02:52]}  O-O-O {[%clk 0:02:56]} 9. g4 {[%clk 0:02:44]}  Bg6 {[%clk 0:02:56]} 10. O-O-O {[%clk 0:02:44]}  f6 {[%clk 0:02:55]} 11. Nh4 {[%clk 0:02:32]}  Bf7 {[%clk 0:02:55]} 12. Nf5 {[%clk 0:02:20]}  Qd7 {[%clk 0:02:56]} 13. Qb5 {[%clk 0:02:09]}  g6 {[%clk 0:02:50]} 14. Ng3 {[%clk 0:02:07]}  Nge7 {[%clk 0:02:48]} 15. Qa4 {[%clk 0:01:40]}  Kb8 {[%clk 0:02:48]} 16. Bb5 {[%clk 0:01:28]}  a6 {[%clk 0:02:47]} 17. Bd3 {[%clk 0:01:25]}  Nc8 {[%clk 0:02:47]} 18. Nce2 {[%clk 0:01:08]}  Nb6 {[%clk 0:02:25]} 19. Qb3 {[%clk 0:01:08]}  Nc4 {[%clk 0:02:20]} 20. c3 {[%clk 0:00:54]}  Re8 {[%clk 0:02:16]} 21. Bf4 {[%clk 0:00:50]}  Bd6 {[%clk 0:02:01]} 22. Bxd6 {[%clk 0:00:49]}  Qxd6 {[%clk 0:02:01]} 23. Qc2 {[%clk 0:00:48]}  Re7 {[%clk 0:01:57]} 24. Rde1 {[%clk 0:00:44]}  Rhe8 {[%clk 0:01:56]} 25. Qd1 {[%clk 0:00:34]}  b5 {[%clk 0:01:51]} 26. Kb1 {[%clk 0:00:34]}  Kb7 {[%clk 0:01:45]} 27. Nc1 {[%clk 0:00:33]}  Qf4 {[%clk 0:01:39]} 28. Rxe7 {[%clk 0:00:26]}  Rxe7 {[%clk 0:01:40]} 29. Rh2 {[%clk 0:00:10]}  Nd2+ {[%clk 0:01:24]} 30. Kc2 {[%clk 0:00:10]}  Nf3 {[%clk 0:01:24]} 31. Rg2 {[%clk 0:00:05]}  Ne1+ {[%clk 0:01:24]} 32. Kb1 {[%clk 0:00:04]}  Nxg2 {[%clk 0:01:24]} 33. Nb3 {[%clk 0:00:04]}  Re1 {[%clk 0:01:23]} 0-1


[Site "https://www.chess.com"]

[Event "Titled Tuesday Blitz September 13 Late 2022"]
[White "Sztokbant, Bernardo Vainzoff"]
[Black "Al Hosani, Omran"]
[WhiteFideId "2115956"]
[BlackFideId "9308733"]
[WhiteElo "2172"]
[BlackElo "2167"]
[Result "1/2-1/2"]
[Round "11"]
[TimeControl "180+1"]
[Date "2022.09.13"]
[WhiteClock "0:00:03"]
[BlackClock "0:00:08"]

1. e4 {[%clk 0:03:00]}  e5 {[%clk 0:02:52]} 2. Nf3 {[%clk 0:03:00]}  Nc6 {[%clk 0:02:52]} 3. d4 {[%clk 0:02:58]}  exd4 {[%clk 0:02:52]} 4. Nxd4 {[%clk 0:02:59]}  Bc5 {[%clk 0:02:53]} 5. Be3 {[%clk 0:02:58]}  Qf6 {[%clk 0:02:52]} 6. c3 {[%clk 0:02:59]}  Nge7 {[%clk 0:02:53]} 7. Bc4 {[%clk 0:02:59]}  Ne5 {[%clk 0:02:51]} 8. Be2 {[%clk 0:02:59]}  d6 {[%clk 0:02:48]} 9. O-O {[%clk 0:02:59]}  O-O {[%clk 0:02:49]} 10. Nd2 {[%clk 0:02:56]}  Qg6 {[%clk 0:02:45]} 11. Nc2 {[%clk 0:02:52]}  Bb6 {[%clk 0:02:39]} 12. f4 {[%clk 0:02:42]}  Bh3 {[%clk 0:02:11]} 13. Rf2 {[%clk 0:02:35]}  Ng4 {[%clk 0:01:55]} 14. Bxg4 {[%clk 0:02:29]}  Bxg4 {[%clk 0:01:54]} 15. Qe1 {[%clk 0:02:24]}  f5 {[%clk 0:01:54]} 16. Bxb6 {[%clk 0:01:42]}  axb6 {[%clk 0:01:55]} 17. e5 {[%clk 0:01:42]}  dxe5 {[%clk 0:01:42]} 18. Qxe5 {[%clk 0:01:40]}  Qd6 {[%clk 0:00:58]} 19. Qxd6 {[%clk 0:01:39]}  cxd6 {[%clk 0:00:59]} 20. Nc4 {[%clk 0:01:23]}  Nc8 {[%clk 0:00:59]} 21. Nb4 {[%clk 0:01:17]}  Bh5 {[%clk 0:00:55]} 22. Re1 {[%clk 0:01:13]}  Bf7 {[%clk 0:00:54]} 23. Ne3 {[%clk 0:01:10]}  Ne7 {[%clk 0:00:51]} 24. a3 {[%clk 0:00:58]}  Rfd8 {[%clk 0:00:48]} 25. Rd2 {[%clk 0:00:57]}  Kf8 {[%clk 0:00:41]} 26. Red1 {[%clk 0:00:55]}  Bb3 {[%clk 0:00:41]} 27. Re1 {[%clk 0:00:55]}  Bf7 {[%clk 0:00:41]} 28. Nec2 {[%clk 0:00:52]}  g6 {[%clk 0:00:30]} 29. Nd4 {[%clk 0:00:52]}  Re8 {[%clk 0:00:13]} 30. Kf2 {[%clk 0:00:38]}  Nc8 {[%clk 0:00:10]} 31. Nb5 {[%clk 0:00:29]}  Rxe1 {[%clk 0:00:09]} 32. Kxe1 {[%clk 0:00:29]}  Ke7 {[%clk 0:00:07]} 33. Kf2 {[%clk 0:00:24]}  Kd7 {[%clk 0:00:05]} 34. Kg3 {[%clk 0:00:18]}  Bc4 {[%clk 0:00:06]} 35. Nd4 {[%clk 0:00:17]}  Bf7 {[%clk 0:00:06]} 36. Nf3 {[%clk 0:00:17]}  Ke7 {[%clk 0:00:04]} 37. Nc2 {[%clk 0:00:14]}  Ra5 {[%clk 0:00:03]} 38. Ncd4 {[%clk 0:00:13]}  Kd7 {[%clk 0:00:03]} 39. Ne2 {[%clk 0:00:12]}  Ke7 {[%clk 0:00:03]} 40. Nc1 {[%clk 0:00:11]}  Kd7 {[%clk 0:00:04]} 41. Nd3 {[%clk 0:00:11]}  Rd5 {[%clk 0:00:04]} 42. Nb4 {[%clk 0:00:07]}  Rxd2 {[%clk 0:00:03]} 43. Nxd2 {[%clk 0:00:08]}  Ne7 {[%clk 0:00:04]} 44. Nf3 {[%clk 0:00:07]}  Nc6 {[%clk 0:00:05]} 45. Nc2 {[%clk 0:00:05]}  Na5 {[%clk 0:00:05]} 46. Ne3 {[%clk 0:00:04]}  Nc4 {[%clk 0:00:06]} 47. Nxc4 {[%clk 0:00:04]}  Bxc4 {[%clk 0:00:06]} 48. Kf2 {[%clk 0:00:04]}  Bd5 {[%clk 0:00:07]} 49. Nd4 {[%clk 0:00:04]}  Bc4 {[%clk 0:00:07]} 50. g3 {[%clk 0:00:05]}  Bf7 {[%clk 0:00:07]} 51. Ke3 {[%clk 0:00:05]}  Bc4 {[%clk 0:00:08]} 52. Nf3 {[%clk 0:00:06]}  Bf7 {[%clk 0:00:08]} 53. Kd4 {[%clk 0:00:06]}  Bb3 {[%clk 0:00:08]} 54. Ng5 {[%clk 0:00:06]}  Bg8 {[%clk 0:00:09]} 55. Nf3 {[%clk 0:00:05]}  Kc6 {[%clk 0:00:09]} 56. Ne1 {[%clk 0:00:04]}  Kd7 {[%clk 0:00:10]} 57. c4 {[%clk 0:00:04]}  Kc6 {[%clk 0:00:09]} 58. b3 {[%clk 0:00:04]}  b5 {[%clk 0:00:10]} 59. Nc2 {[%clk 0:00:01]}  bxc4 {[%clk 0:00:10]} 60. bxc4 {[%clk 0:00:02]}  b5 {[%clk 0:00:11]} 61. cxb5+ {[%clk 0:00:02]}  Kxb5 {[%clk 0:00:12]} 62. Nb4 {[%clk 0:00:02]}  Ka4 {[%clk 0:00:11]} 63. Nd5 {[%clk 0:00:02]}  Kxa3 {[%clk 0:00:12]} 64. Nf6 {[%clk 0:00:03]}  Bf7 {[%clk 0:00:09]} 65. Nxh7 {[%clk 0:00:03]}  Kb4 {[%clk 0:00:09]} 66. Ng5 {[%clk 0:00:02]}  Bg8 {[%clk 0:00:09]} 67. Nf3 {[%clk 0:00:01]}  Kb5 {[%clk 0:00:10]} 68. Nh4 {[%clk 0:00:02]}  Bf7 {[%clk 0:00:10]} 69. Ng2 {[%clk 0:00:02]}  Kc6 {[%clk 0:00:10]} 70. Ne3 {[%clk 0:00:03]}  Kd7 {[%clk 0:00:11]} 71. Ng2 {[%clk 0:00:02]}  Ke6 {[%clk 0:00:11]} 72. Nh4 {[%clk 0:00:02]}  Kf6 {[%clk 0:00:12]} 73. Nf3 {[%clk 0:00:02]}  Ba2 {[%clk 0:00:11]} 74. Ng5 {[%clk 0:00:03]}  Bb3 {[%clk 0:00:11]} 75. Nh7+ {[%clk 0:00:02]}  Kg7 {[%clk 0:00:11]} 76. Ng5 {[%clk 0:00:03]}  Kf6 {[%clk 0:00:12]} 77. Nh3 {[%clk 0:00:03]}  Bg8 {[%clk 0:00:11]} 78. Nf2 {[%clk 0:00:04]}  g5 {[%clk 0:00:11]} 79. Nd3 {[%clk 0:00:02]}  Ba2 {[%clk 0:00:09]} 80. fxg5+ {[%clk 0:00:02]}  Kxg5 {[%clk 0:00:10]} 81. h3 {[%clk 0:00:01]}  Bb1 {[%clk 0:00:08]} 82. Nf4 {[%clk 0:00:02]}  Be4 {[%clk 0:00:08]} 83. h4+ {[%clk 0:00:02]}  Kg4 {[%clk 0:00:08]} 84. Ne2 {[%clk 0:00:02]}  Bf3 {[%clk 0:00:08]} 85. Nc3 {[%clk 0:00:01]}  Kxg3 {[%clk 0:00:08]} 86. h5 {[%clk 0:00:02]}  Bxh5 {[%clk 0:00:09]} 87. Kd5 {[%clk 0:00:03]}  f4 {[%clk 0:00:09]} 88. Kxd6 {[%clk 0:00:04]}  f3 {[%clk 0:00:09]} 89. Ke5 {[%clk 0:00:03]}  Bg6 {[%clk 0:00:08]} 90. Nd1 {[%clk 0:00:03]}  Kg2 {[%clk 0:00:08]} 91. Kd4 {[%clk 0:00:03]}  Kf1 {[%clk 0:00:08]} 92. Ke3 {[%clk 0:00:03]}  Ke1 {[%clk 0:00:08]} 93. Kxf3 {[%clk 0:00:03]} 1/2-1/2


[Site "https://www.chess.com"]

[Event "Titled Tuesday Blitz September 13 Late 2022"]
[White "Vasquez Schroeder, Rodrigo"]
[Black "Tayar, Jonathan"]
[WhiteFideId "3400042"]
[BlackFideId "2606534"]
[WhiteElo "2577"]
[BlackElo "2413"]
[Result "1-0"]
[Round "11"]
[TimeControl "180+1"]
[Date "2022.09.13"]
[WhiteClock "0:00:23"]
[BlackClock "0:00:13"]

1. e4 {[%clk 0:03:00]}  c5 {[%clk 0:02:59]} 2. Nf3 {[%clk 0:03:00]}  d6 {[%clk 0:02:59]} 3. d4 {[%clk 0:03:01]}  Nf6 {[%clk 0:03:00]} 4. Nc3 {[%clk 0:03:00]}  cxd4 {[%clk 0:03:00]} 5. Nxd4 {[%clk 0:03:01]}  a6 {[%clk 0:03:00]} 6. Bg5 {[%clk 0:03:01]}  e6 {[%clk 0:03:00]} 7. f4 {[%clk 0:03:02]}  Be7 {[%clk 0:03:00]} 8. Qf3 {[%clk 0:03:01]}  Qc7 {[%clk 0:03:01]} 9. O-O-O {[%clk 0:03:01]}  Nbd7 {[%clk 0:03:01]} 10. g4 {[%clk 0:03:00]}  h6 {[%clk 0:03:02]} 11. Bxf6 {[%clk 0:03:00]}  Bxf6 {[%clk 0:03:02]} 12. h4 {[%clk 0:03:00]}  Qb6 {[%clk 0:03:00]} 13. Nde2 {[%clk 0:02:59]}  g5 {[%clk 0:02:57]} 14. e5 {[%clk 0:02:58]}  dxe5 {[%clk 0:02:48]} 15. hxg5 {[%clk 0:02:52]}  hxg5 {[%clk 0:02:46]} 16. Rxh8+ {[%clk 0:02:51]}  Bxh8 {[%clk 0:02:45]} 17. fxg5 {[%clk 0:02:52]}  e4 {[%clk 0:02:15]} 18. Qxe4 {[%clk 0:02:48]}  Nf8 {[%clk 0:02:14]} 19. Nf4 {[%clk 0:02:24]}  Bxc3 {[%clk 0:02:08]} 20. bxc3 {[%clk 0:02:24]}  Bd7 {[%clk 0:02:02]} 21. Nd5 {[%clk 0:02:21]}  Qc5 {[%clk 0:02:00]} 22. Nf6+ {[%clk 0:02:17]}  Ke7 {[%clk 0:02:00]} 23. Qf4 {[%clk 0:02:12]}  Rd8 {[%clk 0:01:50]} 24. Kb2 {[%clk 0:02:07]}  Ng6 {[%clk 0:01:47]} 25. Qb4 {[%clk 0:01:50]}  Qxb4+ {[%clk 0:01:21]} 26. cxb4 {[%clk 0:01:51]}  Bc6 {[%clk 0:01:15]} 27. Rxd8 {[%clk 0:01:51]}  Kxd8 {[%clk 0:01:16]} 28. Kc3 {[%clk 0:01:47]}  Ke7 {[%clk 0:01:15]} 29. Kd4 {[%clk 0:01:46]}  Kd6 {[%clk 0:01:14]} 30. c4 {[%clk 0:01:42]}  e5+ {[%clk 0:01:06]} 31. Ke3 {[%clk 0:01:42]}  b6 {[%clk 0:01:07]} 32. Bd3 {[%clk 0:01:39]}  Nf4 {[%clk 0:01:05]} 33. Be4 {[%clk 0:01:39]}  Ne6 {[%clk 0:01:00]} 34. Bxc6 {[%clk 0:01:34]}  Kxc6 {[%clk 0:01:01]} 35. Ke4 {[%clk 0:01:23]}  Nxg5+ {[%clk 0:00:58]} 36. Kxe5 {[%clk 0:01:24]}  Nf3+ {[%clk 0:00:58]} 37. Ke4 {[%clk 0:01:24]}  Nd2+ {[%clk 0:00:57]} 38. Kd3 {[%clk 0:01:24]}  Nf3 {[%clk 0:00:56]} 39. Ke3 {[%clk 0:01:10]}  Ne5 {[%clk 0:00:55]} 40. Kd4 {[%clk 0:01:10]}  Nf3+ {[%clk 0:00:54]} 41. Kc3 {[%clk 0:01:05]}  Ne5 {[%clk 0:00:52]} 42. g5 {[%clk 0:01:01]}  Nf3 {[%clk 0:00:44]} 43. Ne4 {[%clk 0:00:57]}  Ne5 {[%clk 0:00:39]} 44. a4 {[%clk 0:00:52]}  Nf3 {[%clk 0:00:38]} 45. b5+ {[%clk 0:00:46]}  axb5 {[%clk 0:00:37]} 46. axb5+ {[%clk 0:00:45]}  Kc7 {[%clk 0:00:37]} 47. Kb4 {[%clk 0:00:42]}  Ne5 {[%clk 0:00:33]} 48. Kc3 {[%clk 0:00:42]}  Nf3 {[%clk 0:00:33]} 49. Kd3 {[%clk 0:00:40]}  Kd7 {[%clk 0:00:28]} 50. Ke3 {[%clk 0:00:41]}  Ne5 {[%clk 0:00:22]} 51. Kd4 {[%clk 0:00:40]}  Nf3+ {[%clk 0:00:22]} 52. Kd5 {[%clk 0:00:41]}  Kc7 {[%clk 0:00:22]} 53. c5 {[%clk 0:00:34]}  bxc5 {[%clk 0:00:21]} 54. Kxc5 {[%clk 0:00:35]}  Ne5 {[%clk 0:00:20]} 55. b6+ {[%clk 0:00:34]}  Kb8 {[%clk 0:00:19]} 56. Nd6 {[%clk 0:00:33]}  Ka8 {[%clk 0:00:16]} 57. Kd5 {[%clk 0:00:32]}  Nd7 {[%clk 0:00:16]} 58. Kc6 {[%clk 0:00:29]}  Nb8+ {[%clk 0:00:11]} 59. Kb5 {[%clk 0:00:27]}  Nd7 {[%clk 0:00:11]} 60. Nxf7 {[%clk 0:00:27]}  Kb7 {[%clk 0:00:11]} 61. Nd6+ {[%clk 0:00:27]}  Kb8 {[%clk 0:00:11]} 62. g6 {[%clk 0:00:25]}  Nf6 {[%clk 0:00:12]} 63. g7 {[%clk 0:00:25]}  Ng8 {[%clk 0:00:12]} 64. Kc6 {[%clk 0:00:25]}  Ne7+ {[%clk 0:00:12]} 65. Kd7 {[%clk 0:00:25]}  Ng8 {[%clk 0:00:13]} 66. Ke6 {[%clk 0:00:25]}  Nh6 {[%clk 0:00:14]} 67. Nf5 {[%clk 0:00:23]}  Ng8 {[%clk 0:00:13]} 68. Kf7 {[%clk 0:00:23]} 1-0


[Site "https://www.chess.com"]